Workbook

Sheet ShortManual
A1: CROPLIFE PRINCIPLES OF REGULATION PROJECT
A2: OPEX (Operator Exposure) - Tier I risk assessment (version 2.3, 26 October 2018)
A4: Aim of Tool:
A5: This tool aims to assess the risk to operators following the use of plant protection products according to Good Agricultural Practice (GAP). The tool calculates the operator exposure using the US-EPA Occupational Pesticide Handler Exposure Data (PHED + AHETF) augmented by some scenarios for handheld application from the German model, and the risk is expressed as a MoE (Margin of Exposure) and % of dermal + inhalation AOEL for each GAP.
A6: PHED = Pesticide Handler Exposure Database; AHETF = Agricultural Handler Exposure Task Force
A7: Protection goal and method:
A8: The protection goal is to ensure no unreasonable adverse effect to the health of operators as a result of exposure to Plant Protection Products (PPP) during their mixing, loading and application under approved use conditions.
A9: The exposure is calculated according to exposure surrogate reference tables built from the US EPA and previous German model (Lundehn et al., 1992) datasets. They provide dermal and inhalation exposure values for mixing and loading for different formulation types and for different application techniques. All exposure values are available for different clothing scenarios and PPE (Personal Protective Equipment).
A10: Further information and description of US-EPA Occupational Pesticide Handler Exposure Data are available on the US-EPA web-site.
A11: http://www.epa.gov/pesticides/science/handler-exposure-data.html#phed
A12: Occupational Pesticide Handler Exposure Data | Pesticide Science and Assessing Pesticide Risks | US EPA
A13: Handler-exposure-table-2015.pdf
A16: The model calculates the operator exposure in two ways, either using the Margin of Exposure (MoE) - sheet 'Output_OPEX' - or in % of the dermal + inhalation AOEL (Acceptable Operator Exposure Level) - sheet 'Output_OPEX_2'. The 'Output_OPEX_3' presents the exposure values that are used in the calculation (in mg/kg_bw/d).
A18: Operator exposure using the Margin of Exposure method:
A19: The exposure resulting from the inhalation route (TotalExp_Inh) is calculated as:
A20: TotalExp_Inh = (In_MixLoad_Exp+In_Appl_Exp)*(Appl_rate/1000*Work_rate)/bw
A22: where: | B22: In_MixLoad_Exp = Inhalation Exposure during Mixing and Loading from OPHUE models [mg/kg_ai]
B23: In_App_Exp = Inhalation Exposure during Application from OPHUE models [mg/kg_ai]
B24: Appl_rate = Application rate [g/ha]
B25: Work_rate = hectares treated per day [ha/d], this input is optional only, the model includes default values such as 500 ha/d for aerial application, 80 ha/d for boom application, 15 ha/d for airblast application and 1ha/d for handheld
B26: bw = body weight [kg], 60 kg is assumed by default
A28: The exposure resulting from the dermal exposure route (TotalExp_Der) is calculated as:
A29: TotalExp_Derm = (Der_MixLoad_Exp*DA_undiluted + Der_App_Exp*DA_diluted)*(Appl_rate/1000*Work_rate)/bw
A31: where: | B31: Der_MixLoad_Exp = Dermal Exposure during Mixing and Loading from OPHUE models [mg/kg_ai]
B32: Der_App_Exp = Dermal Exposure during Application from OPHUE models [mg/kg_ai]
B33: Appl_rate = Application rate [g/ha]
B34: Work_rate = hectares treated per day [ha/d], this input is optional only, the model includes default values such as 500 ha/d for aerial application, 80 ha/d for boom application, 15 ha/d for airblast application and 1ha/d for handheld
B35: bw = body weight [kg], 60 kg is assumed by default
B36: DA_undiluted = dermal absorption for undiluted formulation during mixing and loading (% applied dose)
B37: DA_diluted = dermal absorption for diluted formulation during application (% applied dose)
A39: The assumption is that the mixing, loading and application are done by the same person. This is a health-protective assumption. This may not be true in some scenarios (e.g. aerial application). Therefore, for aerial application the exposures for the mixer/loader and the applicator are provided separately (figures in brackets: first figure = mixer/loader, second figure = applicator). For all other scenarios a separate calculation for a mixer/loader and an applicator need to be conducted outside the tool (see also below under ‘Note’).
A41: The Margin of Exposure is calculated as:
A42: In_MOE = In_NOAEL / TotalExp_Inh
A43: Der_MOE = Der_NOAEL / TotalExp_Derm
A44: Total_MOE = 1/((1/Der_MOE)+(1/In_MOE))
A46: with: | B46: In_MOE or Der_MOE = Inhalation/Dermal Margin of Exposure [-]
B47: In_NOAEL or Der_NOAEL = Inhalation/Dermal No Observed Adverse Effect Level [mg/kg_bw/d]
B48: Total_MOE = total margin of exposure including inhalation and dermal exposure during mixing + loading + application [-]
A50: Operator exposure using the % of the dermal + inhalation AOEL (Acceptable Operator Exposure Level) method:
A51: The systemic exposure resulting from the inhalation route (TotalSysExp_Inh) is calculated as:
A52: TotalSysExp_Inh = (In_MixLoad_Exp+In_Appl_Exp)*(Appl_rate/1000*Work_rate)/bw
A54: where: | B54: In_MixLoad_Exp = Inhalation Exposure during Mixing and Loading from OPHUE models [mg/kg_ai]
B55: In_App_Exp = Inhalation Exposure during Application from OPHUE models [mg/kg_ai]
B56: Appl_rate = Application rate [g/ha]
B57: Work_rate = hectares treated per day [ha/d], this input is optional only, the model includes default values such as 500 ha/d for aerial application, 80 ha/d for boom application, 15 ha/d for airblast application and 1ha/d for handheld
B58: bw = body weight [kg], 60 kg is assumed by default
A60: The systemic exposure resulting from the dermal exposure route (TotalSysExp_Derm) is acalculated as:
A61: TotalSysExp_Derm = (Der_MixLoad_Exp*DA_undiluted + Der_App_Exp*DA_diluted)*(Appl_rate/1000*Work_rate)/bw
A63: where: | B63: Der_MixLoad_Exp = Dermal Exposure during Mixing and Loading from OPHUE models [mg/kg_ai]
B64: Der_App_Exp = Dermal Exposure during Application from OPHUE models [mg/kg_ai]
B65: Appl_rate = Application rate [g/ha]
B66: Work_rate = hectares treated per day [ha/d], this input is optional only, the model includes default values such as 500 ha/d for aerial application, 80 ha/d for boom application, 15 ha/d for airblast application and 1ha/d for handheld
B67: bw = body weight [kg], 60 kg is assumed by default
B68: DA_undiluted = dermal absorption for undiluted formulation during mixing and loading (% applied dose)
B69: DA_diluted = dermal absorption for diluted formulation during application (% applied dose)
A71: The assumption is that the mixing, loading and application are done by the same person. This is a health-protective assumption. This may not be true in some scenarios (e.g. aerial application). Therefore, for aerial application the exposures for the mixer/loader and the applicator are provided separately (figures in brackets: first figure = mixer/loader, second figure = applicator). For all other scenarios a separate calculation for a mixer/loader and an applicator need to be conducted outside the tool (see also below under ‘Note’).
A73: At Tier-1, the dermal AOEL and inhalation AOEL are calculated from the oral NOAEL, the oral absorption, and using an uncertainty factor of 100. The dermal absorption values for diluted and undiluted formulation are either entered by the user of the tool or set to default values if no values is entered.
A74: Der_AOEL = (Or_NOAEL/UF) * (OrAbs/100), if OrAbs <80
A75: Der_AOEL = Or_NOAEL /UF , if OrAbs >=80
A76: Inh_AOEL = (Or_NOAEL/UF) * (OrAbs/100) , if OrAbs <80
A77: Inh_AOEL = Or_NOAEL/UF , if OrAbs >=80
A79: where: | B79: Inh_AOEL or Der_AOEL = Inhalation/Dermal Acceptable Operator Exposure Level [mg/kg_bw/d]
B80: Or_NOAEL = Oral No Observed Adverse Effect Level [mg/kg_bw/d]
B81: OrAbs = Oral absorption [%]
B82: UF = Uncertainty Factor fixed at 100. In cases where the UF needs to be differen than 100, the OAEL and the % AOEL needs to be calculated outside this tool.
A84: The exposure in % of the dermal + inhalation AOEL is calculated as:
A85: Exposure [% of dermal + inhalation AOEL] = (TotalSysExp_Der/Der_AOEL)*100 + (TotalSysExp_Inh/Inh_AOEL)*100
A87: At Tier-2, the dermal AOEL and inhalation AOEL are calculated from the dermal NOAEL and the inhalation NOAEL which are provided as inputs. The dermal absorption values for diluted and undiluted formulation are set to 100%.
A88: Der_AOEL = Der_NOAEL/UF
A89: Inh_AOEL = Inh_NOAEL/UF
A91: The exposure in % of the dermal + inhalation AOEL is calculated as:
A92: Exposure [% of dermal + inhalation AOEL] = (TotalSysExp_Der/Der_AOEL)*100 + (TotalSysExp_Inh/Inh_AOEL)*100
A94: How to use the tool:
A95: The tool contains a macro, as such the user should allow the macro to run ("Enable the content" when opening the file for the first time) and save the file as an "Excel Macro Enabled Workbook (*.xlsm)"
A97: The following input values need to be entered in the "PoR_Inputs" sheet. The formulation type and Oral NOAEL are two compulsory inputs, without these two inputs, the tool cannot calculate risk for the operator. All other inputs are optional, meaning that if not entered, default values are proposed by the tool.
A98: * Formulation name, optional
A99: * Formulation type, compulsory input otherwise the tool will not work, choose between Liquid, Granule or Powder in the drop-down list appearing when cliking the arrow once cell D6 is selected
A100: * A.I. Name, optional
A101: * A.I. Concentration (%), optional
A108: * Operator Body Weight (kg), optional input. If left empty the tool assumes 60 kg by default.
A109: * Oral NOAEL (mg/kg_bw/d), compulsory input. Need to be entered.
A110: * Oral absorption (% applied dose), optional input. If left empty, the tool assumes 100% by default.
A111: * Uncertainty factor (-), optional input. If left empty the tool assumes 100 by default.
A112: * Dermal absorption - Undiluted (% applied dose), for undiluted formulation during mixing/loading, optional input. If left empty the tool assumes 6% for liquid formulation and 2% for powder, wettable granule and dry granule (Aggarwal et al., 2014).
A113: * Dermal absorption - Diluted (% applied dose) , for diluted formulation during application, optional input. If left empty, the tool assumes 30% as default (Aggarwal et al., 2014, see below for full reference details).
A114: * Dermal NOAEL (mg/kg_bw/d), optional input. If not available (Tier-1) the tool uses a surrogate calculated from Oral absorption and Oral NOAEL. When a Dermal NOAEL value is not provided as input, the Dermal exposure is corrected using the Dermal absorption for undiluted and for diluted formulation.When a Dermal NOAEL value is provided, the Dermal exposure is not corrected.
A115: * Inhalation NOAEL (mg/kg_bw/d), optional input. If not available (Tier-1) the tool can calculate it from the oral absorption and oral NOAEL, assuming absorption via inhalation is 100%.
A116: *By default the tool consider an uncertainty factor of 100 for both dermal and inhalation exposure. If there is a need to use another uncertainty factor, it should be conducted outside the tool.
A127: * Crop Name, optional
A128: * Appl. rate (g_ai/ha/application) = application rate in gram of active ingredient per hectare for each single application, do not enter the total application rate as the model will calculate it. Note it is not possible to enter different application rates for each application.
A129: * Application technique, use the list option (click the cell to open the list) and choose the appropriate application technique. If no application technique is specified or wrongly entered (this entry is case sensitive), the model will ask you to enter one.
A130: * Work rate (ha/day), hectares treated per day, optional, the model includes default values (500 ha/d for aerial application, 80ha/d for tractor boom application, 15 ha/d for tractor airblast application and 1 ha/d for handheld application)
A132: Click the "Run OpEx" box in the PoR_Inputs sheet, the model will run
A141: Summary of recommended input values
A142: The following values are recommended to be used as input values in the model.
B144: Toxicological endpoints | E144: Recommended value | J144: Recommended study (examples)
B145: Oral NOAEL | E145: Lowest relevant value from toxicological study with appropriate duration as compared to exposure situation (e.g. short-term/sub-chronic) and for effects considered to be relevant to human risk assessment. | J145: OECD407, OECD408, OECD409, (OECD414, 421, 422, 424)
B146: Oral Absorption | E146: Sum of urinary excretion (plus biliary excretion) plus carcass residues from oral absorption/distribution/metabolism/excretion (ADME) studies; alternatively by comparison of excretion after oral and intravenous application. | J146: OECD417
B147: Dermal absorption - undiluted Dermal absorption - diluted | E147: In vivo and/or in vitro dermal penetration studies (default values from Aggarwal et al. (2014) are used in absence of data*). | J147: OECD427, OECD428
B148: AOEL | E148: NOAEL from appropriate (mostly oral) toxicity study divided by uncertainty factor (standard assumption 100); in case of oral absorption <80%, correction for low oral absorption recommended. | J148: -
B149: Dermal NOAEL | E149: NOAEL from appropriate (mostly short-term/subchronic) dermal toxicity study. If dermal toxicty study is not available, the oral subcronic studies could be an option. | J149: OECD410, (OECD411)
B150: Inhalation NOAEL | E150: NOAEL from appropriate (mostly short-term/subchronic) inhalation toxicity study. If inhalation toxicity study is not available, the oral subcronic studies could be an option. | J150: OECD412, (OECD413)
A152: Results
A153: For each GAP, the results are displayed as MoE (Total Margin of Exposure) or as % of the AOEL considering:
A154: * long clothes during mixing and loading and long clothes during application
A155: * long clothes + gloves during mixing and loading and long clothes during application
A156: * long clothes + gloves during mixing and loading and long clothes + gloves during application
A157: * double layer of clothes + gloves during mixing and loading and long clothes + gloves during application
A158: * long clothes + gloves + RPE (Respiratory Protective Equipment, protection factor 5) during mixing and loading and long clothes during application
A159: * long clothes + gloves + RPE (Respiratory Protective Equipment, protection factor 5) during mixing and loading and long clothes + gloves during application
A160: * long clothes + gloves + RPE (Respiratory Protective Equipment, protection factor 5) during mixing and loading and long clothes + gloves + RPE 5 during application
A162: A color coding is used which display the results:
A163: * in green when MoE > 100 or %AOEL < 100, generally indicating an acceptable risk
A164: * in red when MoE < 100 or %AOEL >100, generally indicating a risk to operator
A165: Please note that for some active ingredients a different (> or < 100) MoE or Uncertainty factors may be justified depending on the toxicological properties of the compound. It may happen that in some borderline cases, MoE and %AOEL close to 100, the results expressed in MoE and %AOEL generate apparent opposite results due to the different calculation involved.
A167: Note:
A168: For aerial application, the results show the Total MoE or % dermal + inhalation AOEL assuming that the same person is mixing/loading and applying the formulation, and in brackets the results are presented considering that 2 different people are mixing/loading the formulation and applying it.
A170: Reference:
A171: Aggarwal M, Battalora M, Fisher P, Hüser A, Parr-Dobrzanski R, Soufi M, Mostert V, Strupp C, Whalley P, Wiemann C, Billington R (2014), Assessment of in vitro human dermal absorption studies on pesticides to determine default values, opportunities for read-accross and influence of dilution on absorption, Regul. Toxicol. Pharmacol., 2014 Apr., 68 (3), 412-423
A173: Lundehn J-R, Westphal D, Kieczka H, Krebs B, Löcher-Boltz S, Maasfeld W and Pick ED, 1992. Uniform principles for safeguarding the health of applicators of plant protection products. Mitteilungen aus der Biologischen Bundesanstalt für Land und Forstwirtschaft, Heft 277, Berlin, Germany.
A175: The tool was developed by Christine Lorez, Ramanarayanan Tharacad, Wolfgang Maasfeld and Ludovic Loiseau on behalf of the CropLife Operator Exposure group.
A176: If you encounter an issue with it, please contact :
A177: ludovic.loiseau@syngenta.com

Sheet PoR_Inputs
A1: CROPLIFE PRINCIPLES OF REGULATION PROJECT
A2: OPEX (Operator Exposure) - Tier I risk assessment
A3: ludovic.loiseau@syngenta.com
B4: Formulation information
B5: Formulation Name
B6: Formulation Type
B7: A.I. Name
B8: A.I. Concentration (%)
B10: Operator Exposure endpoint | H10: Formulation type (drop-down list)
B11: Operator body weight (kg) | H11: Liquid
B12: Oral NOAEL (mg/kg_bw/d) | H12: Powder
B13: Oral absorption (% applied dose) | H13: Wettable granule for spray
B14: Dermal absorption - Undiluted (% applied dose) | H14: Dry granule for spreading
B15: Dermal absorption - Diluted (% applied dose) | H15: Application technique (drop-down list)
H16: Aerial
H17: Tractor Ground-Boom
B18: Tier-2 Dermal NOAEL (mg/kg_bw/d) | H18: Tractor Airblast
B19: Tier-2 Inhalation NOAEL (mg/kg_bw/d) | H19: Tractor Dry Granule Spreader
H20: Handheld - backpack
H21: Handheld - handwand
H22: Handheld - dry granule spreading
A27: Intended use information
A28: Crop name | B28: Appl. rate (g_ai/ha/application) | C28: Application technique | D28: Work rate - optional for OPEX) - (ha/day) | H28: Default Work Rate
H29: Aerial - 500 ha/day
H30: Tractor Ground-Boom - 80 ha/day
H31: Tractor Airblast - 15 ha/day
H32: Tractor Dry Granule Spreader - 80 ha/day
H33: Handheld (backpack, handwand, granule spreading) - 1 ha/day

Sheet Output_OPEX
A1: CROPLIFE PRINCIPLES OF REGULATION PROJECT
A2: Results of the Tier I risk assessment for Operator Exposure
C4: Margin of Exposure (MoE)
A5: GAP summary | B5: Mixing/loading | C5: Long clothes | D5: Long clothes + gloves | E5: Long clothes + gloves | F5: Double layer of clothes + gloves | G5: Long clothes + gloves + RPE (5) | H5: Long clothes + gloves + RPE (5) | I5: Long clothes + gloves + RPE (5)
B6: Application | C6: Long clothes | D6: Long clothes | E6: Long clothes + gloves | F6: Long clothes + gloves | G6: Long clothes | H6: Long clothes + gloves | I6: Long clothes + gloves + RPE (5)

Sheet Output_OPEX_2
A1: CROPLIFE PRINCIPLES OF REGULATION PROJECT
A2: Results of the Tier I risk assessment for Operator Exposure
C4: % of Dermal + Inhalation AOEL
A5: GAP summary | B5: Mixing/loading | C5: Long clothes | D5: Long clothes + gloves | E5: Long clothes + gloves | F5: Double layer of clothes + gloves | G5: Long clothes + gloves + RPE (5) | H5: Long clothes + gloves + RPE (5) | I5: Long clothes + gloves + RPE (5)
B6: Application | C6: Liquid | D6: Long clothes | E6: Long clothes + gloves | F6: Long clothes + gloves | G6: Long clothes | H6: Long clothes + gloves | I6: Long clothes + gloves + RPE (5)

Sheet Output_OPEX_3
A1: CROPLIFE PRINCIPLES OF REGULATION PROJECT
A2: Results of the Tier I risk assessment for Operator Exposure
C4: Dermal exposure value (D) and Inhalation exposure value (I) (in mg/kg_bw/d)
A5: GAP summary | B5: Mixing/loading | C5: Long clothes | D5: Long clothes + gloves | E5: Long clothes + gloves | F5: Double layer of clothes + gloves | G5: Long clothes + gloves + RPE (5) | H5: Long clothes + gloves + RPE (5) | I5: Long clothes + gloves + RPE (5)
B6: Application | C6: Long clothes | D6: Long clothes | E6: Long clothes + gloves | F6: Long clothes + gloves | G6: Long clothes | H6: Long clothes + gloves | I6: Long clothes + gloves + RPE (5)

Sheet OPHUE_models
A3: Formulation type (drop-down list)
A4: Liquid
A5: Powder
A6: Wetable granule for spray
A7: Dry granule for spreading
A8: Application technique (drop-down list)
A9: Aerial
A10: Tractor Ground-Boom
A11: Tractor Airblast
A12: Tractor Dry Granule Spreader
A13: Handheld - backpack
A14: Handheld - handwand
A15: Handheld - granule spreading
A18: SCENARIOS TABLE
A19: Formulation type | B19: Application technique | C19: Scenario name | D19: PoR Scenario number for mixing and loading (see exposure data table below) | E19: PoR Scenario number for Application (see exposure data table below)
A20: Liquid | B20: Aerial | C20: AHETF OPML + CCA | D20: 3 | E20: 5
B21: Tractor Ground-Boom | C21: AHETF OPML + OCGB | D21: 3 | E21: 7
B22: Tractor Airblast | C22: AHETF OPML + OCAB | D22: 3 | E22: 6
B23: Handheld - backpack | C23: AHETF | D23: 0 | E23: 11
B24: Handheld - handwand | C24: PHED 35 | D24: 0 | E24: 12
A28: Powder | B28: Aerial | C28: PHED 4 + AHETF CCA | D28: 4 | E28: 5
B29: Tractor Ground-Boom | C29: PHED 4 + AHETF OCGB | D29: 4 | E29: 7
B30: Tractor Airblast | C30: PHED 4 + AHETF OCAB | D30: 4 | E30: 6
B31: Handheld - backpack | C31: German model | D31: 13 | E31: 14
A36: Wettable granule for spray | B36: Aerial | C36: AHETF DFML + CCA | D36: 1 | E36: 5
B37: Tractor Ground-Boom | C37: AHETF DFML + OCGB | D37: 1 | E37: 7
B38: Tractor Airblast | C38: AHETF DFML + OCAB | D38: 1 | E38: 6
B39: Handheld - backpack | C39: AHETF | D39: 0 | E39: 11
B40: Handheld - handwand | C40: PHED 35 | D40: 0 | E40: 12
A44: Dry granule for spreading | B44: Tractor Dry Granule Spreader | C44: PHED 2 + 15 | D44: 2 | E44: 8
B45: Handheld - granule spreading | C45: PHED 17 | D45: 0 | E45: 9
A51: EXPOSURE DATA FOR FIELD APPLICATION
E52: recalculated values in mg/kg ai | L52: original values from US-EPA in mg/lb ai
E53: dermal exposure | I53: inhalation exposure | L53: dermal exposure | P53: inhalation exposure
A54: PoR Tool Scenario Number | B54: (Name) - Description - Source (OPHUE = Occupational Pesticide Handler Unit Exposure Surrogate Reference Table from US-EPA, September 2015) | C54: Mixing / Loading | D54: Application | E54: long clothes | F54: long clothes; gloves for m/l | G54: long clothes + gloves for m/l + appl | H54: double layer of clothes + gloves for m/l; long clothes + gloves for appl | I54: no protection | J54: RPE (factor 5) | L54: long clothes | M54: long clothes; gloves for m/l | N54: long clothes + gloves for m/l + appl | O54: double layer of clothes + gloves for m/l; long clothes + gloves for appl | Q54: RPE (factor 5)
E55: PPE0De | F55: PPE1De | G55: PPE2De | H55: PPE3De | I55: PPE0In | J55: PPE1In | P55: no protection | Q55: dust mask
A56: 1 | B56: (AHETF DFML, ex PHED 1) - Mixing/Loading Dry Flowable, wettable granule products - OPHUE | C56: ü | E56: =L56/B91 -> 0.5004493352 | F56: =M56/B91 -> 0.1137585273 | G56: =N56/B91 -> 0.1137585273 | H56: =O56/B91 -> 0.09083045202 | I56: =P56/B91 -> 0.01975341869 | J56: =I56/5 -> 0.003950683738 | L56: 0.227 | M56: 0.0516 | N56: 0.0516 | O56: 0.0412 | P56: 0.00896 | Q56: =P56/5 -> 0.001792
A57: 2 | B57: (PHED 2) - Mixing/Loading Granules, granule products for dry spreading - OPHUE | C57: ü | E57: =L57/B91 -> 0.01845269134 | F57: =M57/B91 -> 0.01515678053 | G57: =N57/B91 -> 0.01515678053 | H57: =O57/B91 -> 0.007462647575 | I57: =P57/B91 -> 0.003747858457 | J57: 0.0007495716914 | L57: 0.00837 | M57: 0.006875 | N57: 0.006875 | O57: 0.003385 | P57: 0.0017 | Q57: 0.00034
A58: 3 | B58: (AHETF OPML, ex PHED 3) - Mixing/Loading Liquids, liquid products - OPHUE | C58: ü | E58: =L58/B91 -> 0.4850169768 | F58: =M58/B91 -> 0.08289381058 | G58: =N58/B91 -> 0.08289381058 | H58: =O58/B91 -> 0.0641545183 | I58: =P58/B91 -> 0.0004828123542 | J58: 9.656247084e-05 | L58: 0.22 | M58: 0.0376 | N58: =M58 -> 0.0376 | O58: 0.0291 | P58: 0.000219 | Q58: 4.38e-05
A59: 4 | B59: (PHED 4) - Mixing/Loading Wettable Powders, powder products - OPHUE | C59: ü | E59: =L59/B91 -> 8.187086568 | F59: =M59/B91 -> 0.3690538269 | G59: =N59/B91 -> 0.3690538269 | H59: =O59/B91 -> 0.2852781673 | I59: =P59/B91 -> 0.09573331227 | J59: 0.01914666245 | L59: 3.7136 | M59: 0.1674 | N59: =M59 -> 0.1674 | O59: 0.1294 | P59: 0.0434239 | Q59: 0.00868478
A60: 5 | B60: (AHETF CCA) - Applicator, Aerial, Fixed-Wing - Liquid - OPHUE | D60: ü | E60: =L60/B91 -> 0.004585615053 | F60: =M60/B91 -> 0.004585615053 | G60: =N60/B91 -> 0.00176590272 | H60: =G60 -> 0.00176590272 | I60: =P60/B91 -> 1.080265085e-05 | J60: 2.160530169e-06 | L60: 0.00208 | M60: =L60 -> 0.00208 | N60: 0.000801 | P60: 4.9e-06 | Q60: 9.8e-07
A61: 6 | B61: (OCAB) - Applicator, Open Cab Airblast - OPHUE | D61: ü | E61: =L61/B91 -> 3.902182041 | F61: =M61/B91 -> 3.902182041 | G61: =N61/B91 -> 3.505349969 | H61: =G61 -> 3.505349969 | I61: =P61/B91 -> 0.01038377255 | J61: 0.00207675451 | L61: 1.77 | M61: =L61 -> 1.77 | N61: 1.59 | O61: 1.48 | P61: 0.00471 | Q61: 0.000942
A62: 7 | B62: (OCGB) - Applicator, Open Cab Groundboom - OPHUE | D62: ü | E62: =L62/B91 -> 0.1732833381 | F62: =M62/B91 -> 0.1732833381 | G62: =N62/B91 -> 0.03549442421 | H62: =G62 -> 0.03549442421 | I62: =P62/B91 -> 0.0007495716914 | J62: 0.0001499143383 | L62: 0.0786 | M62: =L62 -> 0.0786 | N62: 0.0161 | O62: 0.0126 | P62: 0.00034 | Q62: 6.8e-05
A63: 8 | B63: (PHED 15) - Applicator, Open Cab Solid Broadcast Spreader - OPHUE | D63: ü | E63: =L63/B91 -> 0.0218985165 | F63: =M63/B91 -> 0.0218985165 | G63: =N63/B91 -> 0.01586666901 | H63: =O63/B91 -> 0.009219731805 | I63: =P63/B91 -> 0.002645547146 | J63: =I63/5 -> 0.0005291094292 | L63: 0.009933 | M63: =L63 -> 0.009933 | N63: 0.007197 | O63: 0.004182 | P63: 0.0012 | Q63: =P63/5 -> 0.00024
A64: 9 | B64: Applicator, Granules by Hand (granular bait) - OPHUE | D64: ü | E64: =L64/B91 -> 228.7736895 | F64: =M64/B91 -> 228.7736895 | G64: =N64/B91 -> 157.1455005 | H64: =O64/B91 -> 88.80219921 | I64: =P64/B91 -> 1.036172632 | J64: 0.2072345265 | L64: 103.77 | M64: =L64 -> 103.77 | N64: 71.28 | O64: 40.28 | P64: 0.47 | Q64: 0.094
A65: 10 | B65: low pressure handwand for powder products - OPHUE | C65: ü | D65: ü | E65: =L65/B91 -> 64.22065697 | G65: =N65*B91 -> 3.905430306 | I65: =P65/B91 -> 2.425084884 | J65: =I65/5 -> 0.4850169768 | L65: 29.13 | N65: 8.61 | P65: 1.1 | Q65: =P65/5 -> 0.22
A66: 11 | B66: Mixer/Loader/Applicator, Backpack Sprayer - General Broadcast/Foliar Applications - Greenhouses (backpack for liquid and granule products) - OPHUE | C66: ü | D66: ü | E66: =L66/B91 -> 29.10101861 | G66: =N66/B91 -> 24.69177336 | I66: =P66/B91 -> 0.3086471671 | J66: =I66/5 -> 0.06172943341 | L66: 13.2 | N66: 11.2 | P66: 0.14 | Q66: 0.028
A67: 12 | B67: (PHED 35) - Mixer/Loader/Applicator, Mechanically-pressurized Handgun Sprayer, Greenhouses, Mushroom houses, General Broadcast/Foliar Applications (high pressure handwand for liquid and granule products) - OPHUE | C67: ü | D67: ü | E67: =L67/B91 -> 7.815387194 | G67: =N67/B91 -> 5.573285988 | I67: =P67/B91 -> 0.2645547146 | J67: =I67/5 -> 0.05291094292 | L67: 3.545 | N67: 2.528 | P67: 0.12 | Q67: =P67/5 -> 0.024
A68: 13 | B68: backpack for powder products m/l - German model | C68: ü | E68: 50 | F68: 0.5 | G68: 0.5 | I68: 0.8 | J68: =I68/5 -> 0.16 | L68: =E68*B91 -> 22.6796185 | M68: =F68*B91 -> 0.226796185 | N68: =G68*B91 -> 0.226796185 | P68: =I68*B91 -> 0.362873896 | Q68: =P68/5 -> 0.0725747792
A69: 14 | B69: backpack for powder products appl - German Model | D69: ü | E69: 16.65 | F69: 16.65 | G69: 6.156 | I69: 0.3 | J69: 0.06 | L69: =E69*B91 -> 7.552312961 | M69: =F69*B91 -> 7.552312961 | N69: =G69*B91 -> 2.79231463 | P69: =I69*B91 -> 0.136077711 | Q69: 0.0272155422
A70: 15
A71: 16
A72: 17
A73: 18
A74: 19
A75: 20
A76: 21
A77: 22
A78: 23
A79: 24
A80: 25
A81: 26
A82: 27
A83: 28
A84: 29
A85: 30
A86: 31
A87: 32
A88: 33
A89: 34
A90: 35
A91: 1 lb = | B91: 0.45359237 | C91: kg

Sheet Version Control
A1: Version control
A3: Difference between Version 1.7 and version 2.2:
A4: 1- | B4: Verion 2.3 introduces the calculation of route specific AOEL as Tier-2. It makes MOE calculation and % dermal+inhalation AOEL calculation at tier-2 consistent when route specific dermal NOAEL and/or inhalation NOAEL are used as input. At tier-1 (only using Oral NOAEL), version 2.3 and version 1.7 calculation are identical.
A5: 2- | B5: In version 2.3, the AOEL is removed from the input sheet. It is not used as a result ofupdate number 1.
A6: 3- | B6: In version 2.3, calculated route specific inhalation AOEL and dermal AOEL are added in the summary results. They are calculated as Inhalation AOEL = Inhalation NOAEL / 100 and Dermal AOEL = Dermal NOAEL / 100.
A7: 4- | B7: In verion 2.3, the uncertainty factor is removed from the input sheet and a default value of 100 is systematically used for both dermal and inhalation exposure.
A8: 5- | B8: Version 2.3 address a flaw from version 1.7 on the use of dermal NOAEL in the MOE calculation. In version 1.7, when using a route specific dermal NOAEL as Tier-2, the model was adjusting the MOE calculation for dermal absorption when it should not. This is fixed and it is recommended to recalculate scenarios when dermal NOAEL was used in version 1.7. Version 2.2 is more conservative.
A9: 6- | B9: In version 1.7, results from column G and H were interchanged for some application techniques. This is fixed.
A10: 7- | B10: In version 2.3, a new sheet is added (Ouput_OPEX_3) to report the dermal exposure and inhalation exposure expressed mg/kg_bw/d
A11: 8- | B11: In version 2.3, the link to the German model is removed as it is not valid anymore. The refernce to the paper documentation is added in the reference list.
A12: 9- | B12: The short manual is updated accordingly to the difference highlighted above.
